Cogmind - Beta 16.1 @@@ ROGUE MODE // 2026.03.22 @ 18:21:13 Player: morimori Result: Destroyed by YT-VT2(R) with Subdweller Machine Gun Performance ------------- Evolutions (0) 0 Regions Visited (3) 600 Robots Destroyed (34) 170 Value Destroyed (787) 787 Prototype IDs (2) 40 Alien Tech Used (0) 0 Bonus (0) 0 TOTAL SCORE: 1597 Bonus ------- None Cogmind --------- Core Integrity 0/250 Matter 252/300 Energy 248/250 System Corruption 0% Temperature Cool (0) Movement Treading (400) Ox3 Location -10/Subcaves Parts ------- > --- POWER (1) -------- Ion Engine > --- PROPULSION (2) --- Improved Treads Wheel > --- UTILITY (2) ------ Huge Storage Unit > --- WEAPON (2) ------- Barrage Gun Barrage Gun > --- INVENTORY (25) --- Ion Engine Light Nuclear Core Light Nuclear Core Hover Unit Hover Unit Hover Unit Hover Unit Hover Unit Heat Sink Heat Sink Improved Heat Sink Large Storage Unit High-capacity Storage Unit Visual Processing Unit Light Armor Plating Hacking Suite Riot Gun Riot Gun Small Laser Particle Gun Particle Gun Battle Rifle Grenade Launcher Grenade Launcher Peak State ------------ > --- POWER ------------ Ion Engine > --- PROPULSION ------- Improved Treads Improved Treads > --- UTILITY ---------- Improved Heat Sink Huge Storage Unit > --- WEAPON ----------- Barrage Gun Barrage Gun > --- INVENTORY -------- Light Nuclear Core Light Nuclear Core Wheel Hover Unit Hover Unit Hover Unit Hover Unit Hover Unit Heat Sink Heat Sink Large Storage Unit High-capacity Storage Unit Visual Processing Unit Seismic Detector Light Armor Plating Hacking Suite Riot Gun Riot Gun Small Laser Particle Gun Particle Gun Grenade Launcher Grenade Launcher [Rating: 18] Favorites ----------- Power Ion Engine Engine Ion Engine Propulsion Improved Treads Treads Improved Treads Wheel Wheel Utility Seismic Detector Device Seismic Detector Storage Huge Storage Unit Weapon Barrage Gun Energy Gun Small Laser Ballistic Gun Barrage Gun Launcher Grenade Launcher Build | -11 -10 -10 -10 ------- Run | Yrd Mat Min Sub Slots Evolved . | . . . . Power . | . . . . Propulsion . | . . . . Utility . | . . . . Weapon . | . . . . Parts Attached 35 | 8 15 1 11 Power 6 | 1 3 . 2 Engine 6 | 1 3 . 2 Core . | . . . . Reactor . | . . . . Propulsion 12 | 3 4 . 5 Treads 6 | 1 3 . 2 Leg . | . . . . Wheel 6 | 2 1 . 3 Hover . | . . . . Flight . | . . . . Utility 7 | 2 3 . 2 Device 4 | 1 1 . 2 Storage 3 | 1 2 . . Processor . | . . . . Hackware . | . . . . Protection . | . . . . Artifact . | . . . . Weapon 10 | 2 5 1 2 Energy Gun 6 | 2 4 . . Energy Cannon . | . . . . Ballistic Gun 3 | . . 1 2 Ballistic Cannon . | . . . . Launcher 1 | . 1 . . Special Weapon . | . . . . Impact Weapon . | . . . . Slashing Weapon . | . . . . Piercing Weapon . | . . . . Special Melee Weapon . | . . . . Unidentified Prototypes . | . . . . Parts Lost 8 | . . . 8 Power 1 | . . . 1 Propulsion 4 | . . . 4 Utility 1 | . . . 1 Weapon 2 | . . . 2 Highest Loss Streak 5 | . . . 5 To Critical Strikes . | . . . . Average Backups 20 | 3 16 25 23 Power 2 | 1 3 3 2 Propulsion 7 | 1 7 9 6 Utility 5 | . 3 7 8 Weapon 4 | . 2 4 6 Tool/Special . | . . . . Unused Backups 24 | . 7 2 15 Power 5 | . 3 . 2 Propulsion 10 | . 3 2 5 Utility 4 | . . . 4 Weapon 5 | . 1 . 4 Tool/Special . | . . . . Average Slot Usage (%) 99 | . 99 100 99 Engine 13 | . 14 14 13 Treads 14 | . 14 14 16 Wheel 12 | . 14 14 10 Device 14 | . 14 14 14 Storage 14 | . 14 14 14 Energy Gun 17 | . 27 20 2 Ballistic Gun 9 | . . 7 25 Peak Build Rating 18 | 7 13 11 18 Average Rating 11 | 5 10 10 15 On Entrance 7 | . 7 11 11 Avg Prop Armor Cover (%) 10 | 3 10 12 11 Naked Turns . | . . . . Heaviest Build 92 | 13 92 89 92 Greatest Support 46 | 32 20 10 46 Greatest Overweight (x) 9 | . 9 8 9 Average Overweight (x) 5 | . 4 8 7 Largest Inventory Capacity 25 | 8 25 25 25 Average Capacity 21 | 7 18 25 25 Most Carried 25 | 7 25 25 25 Average Carried 20 | 3 16 24 23 Final Capacity 25 | 8 25 25 25 Final Carried 25 | 6 25 25 24 Class Distribution -------------------- 100% | Mutant Dominant Class ---------------- Mutant | -10/Materials Mutant | -10/Mines Mutant | -10/Subcaves Resources | -11 -10 -10 -10 ----------- Run | Yrd Mat Min Sub Matter Collected 850 | 280 240 21 309 Remotely . | . . . . Salvage Created 1153 | 84 857 46 166 Parts 53 | 6 39 2 6 Haulers Intercepted 2 | . 2 . . Recyclers Shooed . | . . . . Parts Field Recycled . | . . . . Retrieved Matter . | . . . . Parts Self-Destructed 10 | . . . 10 Prevented . | . . . . Parts Restored . | . . . . Kills | -11 -10 -10 -10 ------- Run | Yrd Mat Min Sub Combat Hostiles Destroyed 23 | . 13 3 7 Guns 16 | . 11 3 2 AOE 5 | . . . 5 Classes Destroyed 8 | 2 4 1 1 Tunneler 1 | 1 . . . Hauler 2 | . 2 . . Recycler 3 | 1 2 . . Operator 2 | . 2 . . Watcher 3 | . 3 . . Swarmer 7 | . . 3 4 Grunt 14 | . 13 . 1 Subdweller 2 | . . . 2 Best Kill Streak 3 | 1 3 3 3 Combat Bots Only 3 | . 2 3 3 Max Kills in Single Turn 2 | 1 1 1 2 Gunslinging . | . . . . Exploded 2 | . . . 2 Melee . | . . . . Uniques/NPCs Destroyed . | . . . . Combat | -11 -10 -10 -10 -------- Run | Yrd Mat Min Sub Hostile Shots Fired 129 | . 51 29 49 Missed 35 | . 15 8 12 Hits 94 | . 36 21 37 Projectile 94 | . 36 21 37 Critical Strikes 1 | . . . 1 Damage Taken 1624 | . 501 170 953 Core 258 | . 54 28 176 Absorbed by Shields . | . . . . Regen/Repaired (Parts) 63 | . 63 . . Core Remaining (%) 100 | 100 . . . Volleys Fired 121 | 3 71 11 36 Largest 2 | 2 2 2 2 Hottest 130 | 80 130 60 105 Shots Fired 233 | 6 137 22 68 Gun 227 | 6 135 22 64 Cannon . | . . . . Launcher 6 | . 2 . 4 Special . | . . . . Kinetic 55 | . . 11 44 Thermal 169 | 6 132 11 20 Explosive 6 | . 2 . 4 Electromagnetic 3 | . 3 . . Robot Hit Streak 17 | 4 17 3 17 Robot Miss Streak 4 | 1 3 4 2 Penetration Max . | . . . . Secondary Targets 3 | . 2 1 . Max Gunslinging Chain 1 | . 1 1 . Shots Hit Robots 152 | 5 96 9 42 Core Hits 53 | 3 37 4 9 Critical Kills . | . . . . Critical Parts Destroyed . | . . . . Critical Strikes 2 | . 2 . . Burn 2 | . 2 . . Melee Attacks . | . . . . Impact . | . . . . Slashing . | . . . . Piercing . | . . . . Sneak Attacks . | . . . . Combat Hostiles . | . . . . Follow-up Attacks . | . . . . Damage Inflicted 2086 | 60 1293 85 648 Guns 1865 | 60 1293 85 427 Cannons . | . . . . Explosions 221 | . . . 221 Melee . | . . . . Ramming . | . . . . Kinetic 341 | . . 54 287 Thermal 1478 | 60 1247 31 140 Explosive 221 | . . . 221 Electromagnetic 46 | . 46 . . Impact . | . . . . Slashing . | . . . . Piercing . | . . . . Highest Corruption . | . . . . Average Corruption . | . . . . Corruption Purged . | . . . . Corruption Blocked . | . . . . Overload Shots . | . . . . Overflow Damage 12 | . . . 12 Projectiles . | . . . . Explosions 12 | . . . 12 Melee . | . . . . Knockbacks . | . . . . Impact . | . . . . Kinetic . | . . . . Secondary . | . . . . Self-Inflicted Damage 42 | . 36 . 6 Shots 3 | . 2 . 1 Rammed . | . . . . Targets Rammed . | . . . . Kicked . | . . . . Crushed . | . . . . Highest Temperature 219 | 36 219 60 . Average Temperature 56 | 17 60 33 . Received Heat Transfer 489 | . 264 . 225 Siege Activations . | . . . . Martial Activations . | . . . . Shielding Activations . | . . . . Robots Disrupted . | . . . . Combat Hostiles . | . . . . Robots Corrupted . | . . . . Combat Hostiles . | . . . . Parts Fried . | . . . . Impact Corruptions . | . . . . Robots Melted 2 | . 2 . . Combat Hostiles 2 | . 2 . . Parts Melted 6 | . 6 . . Heat Transferred 3609 | 125 3062 75 347 Parts Sabotaged . | . . . . Parts Stolen . | . . . . Parts Stripped . | . . . . Power Chain Reactions . | . . . . Alert | -11 -10 -10 -10 ------- Run | Yrd Mat Min Sub Maximum Alert Level . | . . . . Low Security (%) 100 | 100 100 100 . Level 1 . | . . . . Level 2 . | . . . . Level 3 . | . . . . Level 4 . | . . . . Level 5 . | . . . . High Security . | . . . . Max Security . | . . . . Peak Influence 84 | 5 84 54 . Initial . | . . . . Average 12 | 1 14 5 . Influence Increases 633 | 10 443 70 110 Destroy 0b10 Robot/C 420 | . 260 60 100 Destroy 0b10 Robot/NC 55 | 10 45 . . Destroy Leader 90 | . 70 10 10 Successful Hack 25 | . 25 . . Destroy Structure 13 | . 13 . . Lose Combat Pursuer 30 | . 30 . . Influence Decreases 633 | 10 443 70 110 Time Decay 623 | 10 443 70 100 Lost Part 10 | . . . 10 Squads Dispatched 3 | . 3 . . Investigation 3 | . 3 . . Extermination . | . . . . Reinforcement . | . . . . Assault . | . . . . Garrison . | . . . . Intercept . | . . . . Searches Triggered . | . . . . Construction Impeded . | . . . . Haulers Reinforced . | . . . . Active Scanning Responses . | . . . . Cargo Convoy Interrupts . | . . . . Stealth | -11 -10 -10 -10 --------- Run | Yrd Mat Min Sub Distress Signals 1 | . 1 . . Communications Jammed . | . . . . Distress Signals . | . . . . Times Spotted 37 | . 26 3 8 Peak Tracking Total 5 | . 5 3 3 Tactical Retreats 2 | . 2 . . Traps | -11 -10 -10 -10 ------- Run | Yrd Mat Min Sub Traps Triggered 4 | . 2 . 2 Indirectly . | . . . . Trap Hack Attempts . | . . . . Triggered . | . . . . Disarmed . | . . . . Reprogrammed . | . . . . Reused . | . . . . Traps Extracted . | . . . . Installed . | . . . . Triggered . | . . . . Machines | -11 -10 -10 -10 ---------- Run | Yrd Mat Min Sub Machines Disabled . | . . . . Max in Single Turn . | . . . . Machines Repaired . | . . . . Machines Dismantled . | . . . . Machines Sabotaged . | . . . . Overloaded Fab Kills . | . . . . Hacking | -11 -10 -10 -10 --------- Run | Yrd Mat Min Sub Machines Accessed 12 | . 11 . 1 Terminals 8 | . 8 . . Fabricators . | . . . . Repair Stations 1 | . 1 . . Recycling Units 2 | . 2 . . Scanalyzers . | . . . . Garrison Access . | . . . . Total Hacks 31 | . 27 . 4 Successful 23 | . 19 . 4 Failed 8 | . 8 . . Catastrophic 3 | . 3 . . Database Lockouts . | . . . . Manual 19 | . 19 . . Terminals 21 | . 21 . . Fabricators . | . . . . Repair Stations 4 | . 4 . . Recycling Units 2 | . 2 . . Scanalyzers . | . . . . Garrison Access . | . . . . Terminal Hacks 7 | . 3 . 4 Record 4 | . . . 4 Prototype ID Bank 1 | . 1 . . Terminal Index 1 | . 1 . . Locate Traps 1 | . 1 . . Fabricator Hacks . | . . . . Repair Station Hacks 4 | . 4 . . Scan Component 2 | . 2 . . Repair 2 | . 2 . . Recycling Unit Hacks 2 | . 2 . . Retrieve Components 2 | . 2 . . Scanalyzer . | . . . . Garrison Access Hacks . | . . . . Unauthorized Hacks 10 | . 10 . . Terminals 10 | . 10 . . Assimilate 1 | . 1 . . Botnet 2 | . 2 . . Operators 1 | . 1 . . Skim 6 | . 6 . . Fabricators . | . . . . Repair Stations . | . . . . Recycling Units . | . . . . Scanalyzers . | . . . . Garrison Access . | . . . . Data Cores Recovered . | . . . . Used . | . . . . Hacking Detections 8 | . 8 . . Full Trace Events 3 | . 3 . . Feedback Events . | . . . . Feedback Blocked . | . . . . Robot Schematics Acquired . | . . . . Robots Built . | . . . . Authchips . | . . . . Time . | . . . . Total Robot Build Rating . | . . . . Part Schematics Acquired . | . . . . Parts Built . | . . . . Authchips . | . . . . Time . | . . . . Total Part Build Rating . | . . . . Part Studies Acquired . | . . . . Parts Repaired 2 | . 2 . . Time 58 | . 58 . . Parts Recycled . | . . . . Recycled Matter . | . . . . Retrieved Matter . | . . . . Retrieved Components 12 | . 12 . . Parts Scanalyzed . | . . . . Part Schematics Acquired . | . . . . Parts Damaged . | . . . . Bothacking | -11 -10 -10 -10 ------------ Run | Yrd Mat Min Sub Used RIF Installer . | . . . . Robots Hacked . | . . . . Non-combat . | . . . . Combat . | . . . . Robot Hacks Applied . | . . . . Relay Couplers Released . | . . . . Fabnet Peak Effective % . | . . . . Robots Rewired . | . . . . Allies Hacked . | . . . . Hacks Repelled . | . . . . Allies | -11 -10 -10 -10 -------- Run | Yrd Mat Min Sub Total Allies . | . . . . Largest Group . | . . . . Highest-Rated Group . | . . . . Highest-Rated Ally . | . . . . Total Orders . | . . . . Ally Attacks . | . . . . Total Damage . | . . . . Kills . | . . . . Allies Corrupted . | . . . . Allies Melted . | . . . . Intel | -11 -10 -10 -10 ------- Run | Yrd Mat Min Sub Active Infowar (turns) 3861 | 30 1513 812 1506 Seismic 3861 | 30 1513 812 1506 Robot Analysis Total . | . . . . Derelict Logs Recovered 3 | . . 1 2 Drone Launches . | . . . . Drone Recoveries . | . . . . Exploration | -11 -10 -10 -10 ------------- Run | Yrd Mat Min Sub Turns Passed 4985 | 115 2401 812 1657 Spaces Moved 2062 | 61 947 376 678 Core 1 | 1 . . . Treads 438 | 41 268 . 129 Legs . | . . . . Wheels 1623 | 19 679 376 549 Hover . | . . . . Flight . | . . . . Fastest Speed 50 | 50 145 200 200 Average Speed 193 | 139 176 200 218 Slowest Speed 400 | 160 320 200 400 Overloaded Moves . | . . . . Propulsion Burnouts . | . . . . Robots Hopped . | . . . . Potential Cave-ins . | . . . . Cave-ins Triggered . | . . . . Exploration Rate (%) 59 | 4 98 94 40 Regions Visited 3 Branch Regions 2 Pre-discovered Areas 2 | . . . 2 Known Exits Taken 2 | . 1 1 . Unknown Exits Taken 1 | 1 . . . Scrap Searched 14 | . . 3 11 Spaces Dug 17 | . 11 . 6 Terrain Destroyed 26 | . 11 . 15 Melee . | . . . . Projectile . | . . . . AOE 26 | . 11 . 15 Terrain Rammed . | . . . . Walls Destroyed . | . . . . Machines Disabled . | . . . . Actions | -11 -10 -10 -10 --------- Run | Yrd Mat Min Sub Total 2829 | 82 1548 418 781 Wait 530 | 4 460 24 42 Move 2059 | 60 946 375 678 Hop . | . . . . Pick Up 45 | 7 30 3 5 Fast Attach 8 | 6 1 1 . Attach 8 | 1 . . 7 Detach . | . . . . Swap 34 | 1 21 . 12 Drop 24 | . 19 4 1 Fire 121 | 3 71 11 36 Melee . | . . . . Ram . | . . . . Kick . | . . . . Crush . | . . . . Escape Stasis . | . . . . Rewire . | . . . . Trap . | . . . . Miscellaneous . | . . . . Route ------- -11/Scrapyard -10/Materials (discovered 6 exits: *Mat x3 / *Min x2 / *Sub) -10/Mines (discovered 4 exits: *Mat x2 / Exi / *Sub) -10/Subcaves (discovered 3 exits: *Mat x2 / Rec) History --------- Turn | Location | Event 15 | -11/Scrapyard | Discovered new exit (range 15) 116 | -11/Scrapyard | Entered Materials 307 | -10/Materials | Build established: Mutant 815 | -10/Materials | Repaired Seismic Detector 848 | -10/Materials | Repaired Particle Gun 1001 | -10/Materials | Discovered new exit (range 12) 1121 | -10/Materials | Discovered new exit (range 11) 1220 | -10/Materials | Discovered new exit (range 5) 1255 | -10/Materials | Discovered new exit (range 7) 1469 | -10/Materials | Discovered new exit (range 16) 1562 | -10/Materials | Loaded intel: 1 repair station location 1619 | -10/Materials | Learned Storage emergency access door positions 1664 | -10/Materials | Learned location of 2 exits from Mines 1698 | -10/Materials | Identified exit to Materials 1723 | -10/Materials | Learned location of 2 exits from Subcaves 1761 | -10/Materials | Learned Storage emergency access door positions 1796 | -10/Materials | Identified exit to Subcaves 1796 | -10/Materials | Identified exit to Mines 1840 | -10/Materials | Learned Materials stockpile data 2517 | -10/Materials | Entered Mines 2549 | -10/Mines | Met a Derelict bent on vengeance 2682 | -10/Mines | Identified exit to Exiles 2937 | -10/Mines | Found a Scrap Suit stashed away for nefarious purposes 3305 | -10/Mines | Discovered exit to Subcaves (range 8) 3329 | -10/Mines | Entered Subcaves 3330 | -10/Subcaves | Approached by a straggling Scientist 3330 | -10/Subcaves | Identified exit to Recycling 3330 | -10/Subcaves | Identified exit to Materials 3337 | -10/Subcaves | Discovered exit to Materials (range 5) 3430 | -10/Subcaves | Learned location of Mines (-10) 3441 | -10/Subcaves | Disturbed a concealed Subdweller 3468 | -10/Subcaves | Core integrity fell below 50% 3489 | -10/Subcaves | Core integrity fell below 20% 3508 | -10/Subcaves | Lost 5 parts (1p2n2w) 4436 | -10/Subcaves | Visited Clippyterm 4442 | -10/Subcaves | Learned location of Section 7 (-2) 4442 | -10/Subcaves | Learned Factory fabricator intel 4957 | -10/Subcaves | Disturbed a concealed Subdweller 4986 | -10/Subcaves | Destroyed by YT-VT2(R) with Subdweller Machine Gun Last Messages --------------- 04700_ J9-TOG(R) affixes Scrap Shield Fragment to Scrap Shield. 04705_ J9-TOG(R) destroyed. 04708_ Acquired 59 matter. 04710_ Searching scrap... 04710_ Found Battle Rifle. 04710_ Found Sub. Machine Gun. 04710_ Found 47 Matter. 04711_ Acquired 47 matter. 04712_ Searching scrap... 04712_ Found Battle Cannon. 04712_ Found Riot Gun. 04712_ Found 34 Matter. 04713_ Acquired 8 matter. 04714_ Searching scrap... 04714_ Found Sub. Laser. 04714_ Found Battle Rifle. 04721_ Acquired Battle Rifle. 04957_ YT-VT2(R) angrily emerges from the Twisted Machinery. 04982_ Imp. Treads destroyed. 04984_ Seismic Detector destroyed. Map ----- +----------------------------------------------------+ | | | | | | | | | | | | | | | | | | | | | ?????????????????????????????????????????????????? | | ?????????????????????????????????????????????????? | | ?????????????????????????????????????????????????? | | ?????????????????????????????????????????????????? | | ?????????????????????????????????????????????????? | | ?????????????????????????????????????????????????? | | ?????????????????????????????????????????????????? | | ?????????????????????????????????????????????????? | | ?????????????????????????????????????????????????? | | ?????????????????????????????????????????????????? | | ?????????????????????????????##??????????????????? | | ?????????????????????????????"#??????????????????? | | ???????????????????????????##&???????????????????? | | ??????????????????????????## ???????????????????? | | ????????????????????????###" ###?????????????????? | | ????????????????????????#@## # ##????????????????? | | ????????????????????????# R< " #????????????????? | | ????????????????????????# % #??? ??????????? | | ???????????????????????## %##? % #??????????? | | ??????????????????????## ## #???????????? | | ?????????????????????## % ###?????????? | | ?????????????????????# #?????????? | | ?????????????????????# ??????? | | ?????????????????????## ## ??????? | | ??????????????????????# #### ##??? ???????? | | ?????????????????????## ##??? #?????????????? | | ????????????????????## ##########?????????????? | | ????????????????????# #??????????????????? | | ????????????????????## ###????????????????? | | ?????????????????????# #????????????????? | | ????????????????????## ## ?????????? | | ????????????????????# ##?# ????????? | | ???????????????????## ##?? % ????????? | | ???????????????????# ##?? ?????????? | | ???????????????????# ?????????? | | ?????????####???#### ### % ?????????? | | ?????##### ##### ##?# ??????????? | | ????## # ## #?? ??#??????????? | | ????# #?? ##?????????????? | | ?#### ## #?? #??????????????? | +----------------------------------------------------+ Best States ------------- Heat Dissipation 39 Energy Generation 10 Energy Capacity 250 Matter Stores 300 Matter Capacity 300 Sight Range 16 Terrain Scan Density 10 Evasion (%) 40 Recoil Reduction 2 Item Schematics ----------------- None Robot Schematics ------------------ None Fabricated ------------ Nothing Repaired ---------- Seismic Detector | 10% | -10/Materials Particle Gun | 40% | -10/Materials Studied --------- None Alien Tech Used ----------------- None Achievements -------------- None Challenges ------------ None Game ------ Seed GreatLayeredLauncher Manual? 0 Play Time 00:26:11 Cumulative 525.4 hours Start 2026.03.22 @ 17:24:17 End 2026.03.22 @ 18:21:13 Sessions 1 Manual Loads 0 Difficulty Rogue Special Mode None Game No. 248 Rogue 248 Adventurer 0 Explorer 0 Win Type - Total 9 Types 7/0/1/0/0/0/1/0/0/0 Lore% 73 Gallery% 71 Achievement% 51 Wizard Run 0 Options --------- Layout 0 ASCII 0 Keyboard 1 Movement Vi Keybinds 0 Fullscreen 2 Font 18/SmallcapsGlow Map View 76x50 Zoom Use 0% Tactical HUD 1 Map Filters NONE Filters NONE Steam 1 RUN: 4b0d11f4-92ca-429d-bc9b-1e3cd8b64165